[Event "Argentine Superior Chess Championship 2023"]
[Site "https://www.chess.com"]
[Date "2023.10.31"]
[Round "4"]
[White "Silva, Luca"]
[Black "Villca, Julian"]
[Result "1/2-1/2"]
[Board "6"]
[TimeControl "5400+30"]
[WhiteFideId "147370"]
[BlackFideId "134902"]
[WhiteElo "2287"]
[BlackElo "2383"]
[WhiteTeam "ARG"]
[BlackTeam "ARG"]
[WhiteClock "0:26:35"]
[BlackClock "0:41:02"]

1. d4 {[%clk 1:30:58]}  d5 {[%clk 1:17:01]} 2. Bf4 {[%clk 1:31:22]}  Nf6 {[%clk 1:16:02]} 3. e3 {[%clk 1:31:47]}  c5 {[%clk 1:15:58]} 4. c3 {[%clk 1:32:13]}  Nc6 {[%clk 1:15:11]} 5. Nd2 {[%clk 1:32:38]}  Qb6 {[%clk 1:11:22]} 6. Qb3 {[%clk 1:32:59]}  Qxb3 {[%clk 1:10:04]} 7. axb3 {[%clk 1:32:30]}  e6 {[%clk 1:09:25]} 8. h3 {[%clk 1:27:51]}  Nd7 {[%clk 1:05:22]} 9. Ngf3 {[%clk 1:21:37]}  f6 {[%clk 1:05:41]} 10. Bb5 {[%clk 1:19:41]}  Kf7 {[%clk 1:04:11]} 11. Bg3 {[%clk 1:13:25]}  g5 {[%clk 1:02:07]} 12. O-O {[%clk 1:11:08]}  h5 {[%clk 1:02:06]} 13. dxc5 {[%clk 1:00:15]}  Bxc5 {[%clk 1:00:41]} 14. b4 {[%clk 0:54:55]}  Be7 {[%clk 0:54:55]} 15. e4 {[%clk 0:49:49]}  Nb6 {[%clk 0:39:45]} 16. Bc7 {[%clk 0:35:35]}  Bd7 {[%clk 0:36:37]} 17. Bxb6 {[%clk 0:30:50]}  axb6 {[%clk 0:36:54]} 18. exd5 {[%clk 0:31:16]}  exd5 {[%clk 0:37:17]} 19. Nb3 {[%clk 0:26:24]}  g4 {[%clk 0:37:01]} 20. hxg4 {[%clk 0:25:42]}  hxg4 {[%clk 0:37:01]} 21. Nfd4 {[%clk 0:26:08]}  Rad8 {[%clk 0:29:39]} 22. g3 {[%clk 0:21:42]}  f5 {[%clk 0:25:43]} 23. Kg2 {[%clk 0:13:49]}  f4 {[%clk 0:22:58]} 24. gxf4 {[%clk 0:12:47]}  Bd6 {[%clk 0:23:16]} 25. Rh1 {[%clk 0:11:19]}  Bxf4 {[%clk 0:23:16]} 26. Rxh8 {[%clk 0:09:41]}  Rxh8 {[%clk 0:23:44]} 27. Bxc6 {[%clk 0:03:29]}  bxc6 {[%clk 0:23:03]} 28. Ra7 {[%clk 0:03:58]}  Rh2+ {[%clk 0:23:24]} 29. Kg1 {[%clk 0:04:27]}  Ke8 {[%clk 0:23:46]} 30. Ne2 {[%clk 0:03:30]}  Be5 {[%clk 0:22:51]} 31. Nbd4 {[%clk 0:01:37]}  c5 {[%clk 0:22:19]} 32. bxc5 {[%clk 0:01:37]}  bxc5 {[%clk 0:22:47]} 33. Nb3 {[%clk 0:01:40]}  d4 {[%clk 0:16:08]} 34. Rxd7 {[%clk 0:00:59]}  Kxd7 {[%clk 0:16:08]} 35. Nxc5+ {[%clk 0:01:28]}  Kc6 {[%clk 0:16:01]} 36. cxd4 {[%clk 0:01:57]}  Bb8 {[%clk 0:13:35]} 37. Ne4 {[%clk 0:02:17]}  Rh6 {[%clk 0:13:25]} 38. N2c3 {[%clk 0:02:08]}  Kd7 {[%clk 0:13:33]} 39. b4 {[%clk 0:01:46]}  Rh3 {[%clk 0:12:10]} 40. Kg2 {[%clk 0:30:55]}  Ba7 {[%clk 0:41:02]} 41. Nd5 {[%clk 0:26:35]} 1/2-1/2

[Event "Argentine Superior Chess Championship 2023"]
[Site "https://www.chess.com"]
[Date "2023.11.01"]
[Round "5"]
[White "Peralta, Fernando"]
[Black "Tokman, Ariel"]
[Result "1-0"]
[Board "2"]
[TimeControl "5400+30"]
[WhiteFideId "105309"]
[BlackFideId "117420"]
[WhiteElo "2580"]
[BlackElo "2306"]
[WhiteTeam "ARG"]
[BlackTeam "ARG"]
[WhiteClock "0:20:05"]
[BlackClock "0:04:15"]

1. d4 {[%clk 1:30:55]}  d5 {[%clk 1:30:39]} 2. c4 {[%clk 1:31:19]}  e6 {[%clk 1:31:02]} 3. Nc3 {[%clk 1:31:08]}  Nf6 {[%clk 1:31:24]} 4. cxd5 {[%clk 1:30:52]}  exd5 {[%clk 1:31:46]} 5. Bg5 {[%clk 1:31:15]}  Bb4 {[%clk 1:32:04]} 6. e3 {[%clk 1:30:18]}  h6 {[%clk 1:31:27]} 7. Bh4 {[%clk 1:30:40]}  g5 {[%clk 1:30:12]} 8. Bg3 {[%clk 1:31:03]}  Ne4 {[%clk 1:29:32]} 9. Nge2 {[%clk 1:31:21]}  h5 {[%clk 1:18:11]} 10. h3 {[%clk 1:31:44]}  Qf6 {[%clk 1:00:06]} 11. Qb3 {[%clk 0:44:29]}  Nxg3 {[%clk 0:55:14]} 12. Nxg3 {[%clk 0:43:50]}  Bxc3+ {[%clk 0:50:03]} 13. bxc3 {[%clk 0:40:33]}  h4 {[%clk 0:49:00]} 14. Ne2 {[%clk 0:40:53]}  Qd6 {[%clk 0:27:57]} 15. Ng1 {[%clk 0:37:01]}  Nc6 {[%clk 0:25:53]} 16. Nf3 {[%clk 0:37:13]}  Rg8 {[%clk 0:25:50]} 17. c4 {[%clk 0:31:32]}  Be6 {[%clk 0:16:11]} 18. c5 {[%clk 0:30:09]}  Qd7 {[%clk 0:13:35]} 19. Bb5 {[%clk 0:28:35]}  f6 {[%clk 0:13:29]} 20. Nh2 {[%clk 0:23:34]}  Kf7 {[%clk 0:11:48]} 21. Ng4 {[%clk 0:23:06]}  Kg7 {[%clk 0:11:35]} 22. Qd1 {[%clk 0:14:12]}  Qe7 {[%clk 0:09:55]} 23. Rb1 {[%clk 0:12:11]}  Rab8 {[%clk 0:08:30]} 24. Rb3 {[%clk 0:07:04]}  a6 {[%clk 0:06:01]} 25. Be2 {[%clk 0:07:25]}  b6 {[%clk 0:03:45]} 26. cxb6 {[%clk 0:07:08]}  Rxb6 {[%clk 0:04:08]} 27. O-O {[%clk 0:05:58]}  Na5 {[%clk 0:04:08]} 28. Rxb6 {[%clk 0:05:06]}  cxb6 {[%clk 0:04:37]} 29. Bxa6 {[%clk 0:05:20]}  Ra8 {[%clk 0:04:41]} 30. Bd3 {[%clk 0:01:50]}  Nc4 {[%clk 0:05:05]} 31. Bb1 {[%clk 0:01:49]}  Nd6 {[%clk 0:02:54]} 32. Re1 {[%clk 0:01:06]}  Rc8 {[%clk 0:02:30]} 33. Qb3 {[%clk 0:00:39]}  Qc7 {[%clk 0:02:17]} 34. e4 {[%clk 0:00:35]}  Bxg4 {[%clk 0:01:20]} 35. hxg4 {[%clk 0:01:02]}  dxe4 {[%clk 0:01:36]} 36. Bxe4 {[%clk 0:00:48]}  Re8 {[%clk 0:00:55]} 37. f3 {[%clk 0:00:39]}  Nf7 {[%clk 0:00:52]} 38. Qb5 {[%clk 0:00:33]}  Qg3 {[%clk 0:00:58]} 39. Re2 {[%clk 0:00:34]}  Rc8 {[%clk 0:01:01]} 40. Bc2 {[%clk 0:30:42]}  h3 {[%clk 0:30:45]} 41. Qf5 {[%clk 0:25:34]}  Rc4 {[%clk 0:04:49]} 42. Qg6+ {[%clk 0:20:08]}  Kf8 {[%clk 0:05:13]} 43. Qxf6 {[%clk 0:20:31]}  Rxc2 {[%clk 0:04:15]} 44. Qe7+ {[%clk 0:20:05]} 1-0

[Event "Argentine Superior Chess Championship 2023"]
[Site "https://www.chess.com"]
[Date "2023.11.01"]
[Round "5"]
[White "Villca, Julian"]
[Black "Acosta, Pablo Ismael"]
[Result "1/2-1/2"]
[Board "3"]
[TimeControl "5400+30"]
[WhiteFideId "134902"]
[BlackFideId "124311"]
[WhiteElo "2383"]
[BlackElo "2482"]
[WhiteTeam "ARG"]
[BlackTeam "ARG"]
[WhiteClock "0:03:05"]
[BlackClock "0:01:47"]

1. c4 {[%clk 1:17:48]}  e6 {[%clk 1:30:36]} 2. Nf3 {[%clk 1:18:04]}  d5 {[%clk 1:30:56]} 3. e3 {[%clk 1:18:08]}  Nf6 {[%clk 1:30:26]} 4. b3 {[%clk 1:17:24]}  Bd6 {[%clk 1:23:58]} 5. Bb2 {[%clk 1:17:38]}  O-O {[%clk 1:24:09]} 6. Nc3 {[%clk 1:11:21]}  c6 {[%clk 1:22:52]} 7. d4 {[%clk 1:11:30]}  Nbd7 {[%clk 1:20:08]} 8. Qc2 {[%clk 1:02:14]}  Qe7 {[%clk 1:14:18]} 9. h3 {[%clk 0:56:17]}  e5 {[%clk 1:11:36]} 10. cxd5 {[%clk 0:54:12]}  cxd5 {[%clk 1:06:30]} 11. dxe5 {[%clk 0:53:50]}  Nxe5 {[%clk 1:06:51]} 12. Nd4 {[%clk 0:53:06]}  Be6 {[%clk 1:01:58]} 13. Bd3 {[%clk 0:49:17]}  Ba3 {[%clk 0:49:39]} 14. Bxa3 {[%clk 0:48:42]}  Qxa3 {[%clk 0:49:59]} 15. O-O {[%clk 0:48:34]}  Rac8 {[%clk 0:49:30]} 16. Qd2 {[%clk 0:29:03]}  a6 {[%clk 0:46:35]} 17. Nce2 {[%clk 0:26:41]}  Bd7 {[%clk 0:38:03]} 18. f3 {[%clk 0:25:12]}  Rc7 {[%clk 0:32:34]} 19. Rfc1 {[%clk 0:20:41]}  Rxc1+ {[%clk 0:28:22]} 20. Qxc1 {[%clk 0:19:33]}  Qa5 {[%clk 0:22:08]} 21. Qd1 {[%clk 0:17:27]}  g6 {[%clk 0:21:26]} 22. a3 {[%clk 0:15:51]}  Re8 {[%clk 0:21:40]} 23. Kf2 {[%clk 0:14:29]}  h5 {[%clk 0:18:38]} 24. Ra2 {[%clk 0:12:54]}  h4 {[%clk 0:18:02]} 25. Bb1 {[%clk 0:13:03]}  Qd8 {[%clk 0:15:16]} 26. Nf4 {[%clk 0:12:03]}  Qe7 {[%clk 0:15:30]} 27. Qd2 {[%clk 0:12:00]}  Bc6 {[%clk 0:15:16]} 28. a4 {[%clk 0:11:31]}  Nfd7 {[%clk 0:14:12]} 29. Rc2 {[%clk 0:11:05]}  a5 {[%clk 0:11:43]} 30. Rc3 {[%clk 0:10:08]}  Nc5 {[%clk 0:10:37]} 31. Qc1 {[%clk 0:08:31]}  Na6 {[%clk 0:09:56]} 32. Nde2 {[%clk 0:08:13]}  Nb4 {[%clk 0:10:00]} 33. Qd2 {[%clk 0:08:13]}  Qg5 {[%clk 0:08:08]} 34. Qd4 {[%clk 0:07:44]}  Qf6 {[%clk 0:06:57]} 35. Nd3 {[%clk 0:06:45]}  Nbxd3+ {[%clk 0:05:37]} 36. Bxd3 {[%clk 0:07:13]}  Qe7 {[%clk 0:05:16]} 37. Bb1 {[%clk 0:06:58]}  Rd8 {[%clk 0:03:40]} 38. Qc5 {[%clk 0:05:50]}  Qxc5 {[%clk 0:02:02]} 39. Rxc5 {[%clk 0:06:18]}  b6 {[%clk 0:02:09]} 40. Rc1 {[%clk 0:36:42]}  Rc8 {[%clk 0:32:01]} 41. Nd4 {[%clk 0:23:21]}  Bb7 {[%clk 0:29:53]} 42. Rxc8+ {[%clk 0:23:35]}  Bxc8 {[%clk 0:30:11]} 43. f4 {[%clk 0:23:50]}  Nd7 {[%clk 0:30:38]} 44. Ke1 {[%clk 0:23:37]}  Nc5 {[%clk 0:29:04]} 45. Bc2 {[%clk 0:23:46]}  Bb7 {[%clk 0:13:54]} 46. Kf2 {[%clk 0:12:09]}  Ba6 {[%clk 0:09:55]} 47. Nf3 {[%clk 0:10:31]}  Bd3 {[%clk 0:09:08]} 48. Bd1 {[%clk 0:10:42]}  Bb1 {[%clk 0:07:22]} 49. Ke2 {[%clk 0:10:40]}  Kg7 {[%clk 0:05:47]} 50. Kd2 {[%clk 0:09:56]}  Ne4+ {[%clk 0:06:13]} 51. Kc1 {[%clk 0:07:56]}  Bd3 {[%clk 0:06:42]} 52. Nxh4 {[%clk 0:07:15]}  Bf1 {[%clk 0:07:09]} 53. Kc2 {[%clk 0:06:07]}  f6 {[%clk 0:05:41]} 54. Bf3 {[%clk 0:05:46]}  Nd6 {[%clk 0:03:44]} 55. g3 {[%clk 0:01:38]}  Bxh3 {[%clk 0:02:08]} 56. Bxd5 {[%clk 0:01:50]}  g5 {[%clk 0:02:34]} 57. fxg5 {[%clk 0:01:12]}  fxg5 {[%clk 0:02:48]} 58. Ng2 {[%clk 0:00:58]}  Kf6 {[%clk 0:02:27]} 59. Kd3 {[%clk 0:00:55]}  Ke5 {[%clk 0:02:26]} 60. Ba8 {[%clk 0:00:46]}  Bf5+ {[%clk 0:01:11]} 61. Kd2 {[%clk 0:00:34]}  Be4 {[%clk 0:00:33]} 62. Bxe4 {[%clk 0:00:58]}  Nxe4+ {[%clk 0:00:37]} 63. Kd3 {[%clk 0:01:05]}  Nxg3 {[%clk 0:00:38]} 64. b4 {[%clk 0:01:20]}  axb4 {[%clk 0:00:37]} 65. Kc4 {[%clk 0:01:48]}  Ke4 {[%clk 0:00:50]} 66. Kxb4 {[%clk 0:01:43]}  Ne2 {[%clk 0:00:33]} 67. Kb5 {[%clk 0:00:44]}  Nc3+ {[%clk 0:00:54]} 68. Kxb6 {[%clk 0:00:46]}  Nxa4+ {[%clk 0:01:23]} 69. Kc6 {[%clk 0:00:49]}  Nb2 {[%clk 0:01:29]} 70. Kd6 {[%clk 0:00:51]}  g4 {[%clk 0:00:33]} 71. Ke6 {[%clk 0:01:03]}  g3 {[%clk 0:00:33]} 72. Kf6 {[%clk 0:00:45]}  Kf3 {[%clk 0:00:50]} 73. Nh4+ {[%clk 0:01:13]}  Kg4 {[%clk 0:01:14]} 74. Ng2 {[%clk 0:01:28]}  Nd3 {[%clk 0:01:10]} 75. e4 {[%clk 0:00:58]}  Kf3 {[%clk 0:01:06]} 76. Nh4+ {[%clk 0:01:03]}  Kxe4 {[%clk 0:01:10]} 77. Kg5 {[%clk 0:00:59]}  Ne5 {[%clk 0:01:33]} 78. Kf6 {[%clk 0:00:36]}  Kf4 {[%clk 0:00:38]} 79. Ng2+ {[%clk 0:00:57]}  Kf3 {[%clk 0:00:40]} 80. Nh4+ {[%clk 0:01:24]}  Kg4 {[%clk 0:00:43]} 81. Nf5 {[%clk 0:01:05]}  Nd7+ {[%clk 0:01:08]} 82. Kg6 {[%clk 0:01:19]}  Ne5+ {[%clk 0:00:41]} 83. Kf6 {[%clk 0:01:47]}  Nd7+ {[%clk 0:00:36]} 84. Kg6 {[%clk 0:02:15]}  g2 {[%clk 0:00:52]} 85. Ne3+ {[%clk 0:02:39]}  Kf3 {[%clk 0:01:19]} 86. Nxg2 {[%clk 0:03:05]}  Kxg2 {[%clk 0:01:47]} 1/2-1/2

[Event "Argentine Superior Chess Championship 2023"]
[Site "https://www.chess.com"]
[Date "2023.11.01"]
[Round "5"]
[White "Krysa, Leandro"]
[Black "Gomez, Carlos David"]
[Result "1/2-1/2"]
[Board "4"]
[TimeControl "5400+30"]
[WhiteFideId "116807"]
[BlackFideId "114669"]
[WhiteElo "2546"]
[BlackElo "2331"]
[WhiteTeam "ARG"]
[BlackTeam "ARG"]
[WhiteClock "0:03:18"]
[BlackClock "0:09:38"]

1. Nf3 {[%clk 1:30:50]}  d5 {[%clk 1:30:46]} 2. g3 {[%clk 1:31:00]}  Nf6 {[%clk 1:29:11]} 3. Bg2 {[%clk 1:31:05]}  e6 {[%clk 1:28:15]} 4. O-O {[%clk 1:30:22]}  Be7 {[%clk 1:27:58]} 5. c4 {[%clk 1:29:06]}  dxc4 {[%clk 1:27:54]} 6. Qa4+ {[%clk 1:25:10]}  Nbd7 {[%clk 1:24:07]} 7. Qxc4 {[%clk 1:23:36]}  c5 {[%clk 1:23:54]} 8. Qc2 {[%clk 1:15:46]}  Nd5 {[%clk 1:02:01]} 9. a3 {[%clk 1:12:40]}  b5 {[%clk 0:51:45]} 10. e4 {[%clk 0:53:30]}  N5b6 {[%clk 0:51:48]} 11. d4 {[%clk 0:52:24]}  Bb7 {[%clk 0:50:42]} 12. Rd1 {[%clk 0:49:20]}  Qc8 {[%clk 0:46:28]} 13. d5 {[%clk 0:36:19]}  exd5 {[%clk 0:30:07]} 14. exd5 {[%clk 0:36:22]}  Nxd5 {[%clk 0:30:24]} 15. Nh4 {[%clk 0:33:43]}  Bxh4 {[%clk 0:23:45]} 16. Bxd5 {[%clk 0:31:22]}  Be7 {[%clk 0:21:03]} 17. Qe2 {[%clk 0:28:22]}  Bxd5 {[%clk 0:14:24]} 18. Rxd5 {[%clk 0:28:43]}  Kf8 {[%clk 0:14:46]} 19. Nc3 {[%clk 0:21:52]}  Nf6 {[%clk 0:12:19]} 20. Rd1 {[%clk 0:20:45]}  a6 {[%clk 0:10:54]} 21. Qf3 {[%clk 0:14:28]}  Rb8 {[%clk 0:11:02]} 22. Bg5 {[%clk 0:05:08]}  h6 {[%clk 0:08:58]} 23. Bxf6 {[%clk 0:05:13]}  Bxf6 {[%clk 0:09:20]} 24. Rac1 {[%clk 0:03:53]}  Bd4 {[%clk 0:02:35]} 25. Ne4 {[%clk 0:03:35]}  Qb7 {[%clk 0:02:33]} 26. Qf4 {[%clk 0:03:09]}  g5 {[%clk 0:00:40]} 27. Qd6+ {[%clk 0:03:00]}  Qe7 {[%clk 0:00:32]} 28. Qxb8+ {[%clk 0:00:48]}  Kg7 {[%clk 0:01:01]} 29. Nd6 {[%clk 0:00:32]}  Qf6 {[%clk 0:00:58]} 30. Qb7 {[%clk 0:00:34]}  Qxd6 {[%clk 0:00:50]} 31. Qf3 {[%clk 0:00:33]}  Rd8 {[%clk 0:00:40]} 32. b3 {[%clk 0:00:39]}  a5 {[%clk 0:00:52]} 33. Re1 {[%clk 0:00:44]}  Qf6 {[%clk 0:01:08]} 34. Kg2 {[%clk 0:00:33]}  b4 {[%clk 0:00:43]} 35. axb4 {[%clk 0:00:33]}  axb4 {[%clk 0:01:06]} 36. Qxf6+ {[%clk 0:00:34]}  Kxf6 {[%clk 0:01:30]} 37. Kf3 {[%clk 0:00:37]}  Ra8 {[%clk 0:01:52]} 38. Rc2 {[%clk 0:00:33]}  Ra3 {[%clk 0:02:05]} 39. Rb1 {[%clk 0:00:43]}  h5 {[%clk 0:00:54]} 40. Ke4 {[%clk 0:30:33]}  Ke6 {[%clk 0:31:12]} 41. f3 {[%clk 0:16:17]}  f5+ {[%clk 0:29:19]} 42. Kd3 {[%clk 0:16:20]}  Kd5 {[%clk 0:29:42]} 43. Ke2 {[%clk 0:14:26]}  Ra7 {[%clk 0:18:20]} 44. Kd3 {[%clk 0:14:23]}  Be5 {[%clk 0:17:50]} 45. Re1 {[%clk 0:11:24]}  Bd6 {[%clk 0:14:26]} 46. Rd2 {[%clk 0:09:38]}  Be5 {[%clk 0:12:05]} 47. Rxe5+ {[%clk 0:09:04]}  Kxe5 {[%clk 0:12:28]} 48. Kc4 {[%clk 0:09:32]}  Ra5 {[%clk 0:11:28]} 49. Re2+ {[%clk 0:03:41]}  Kd6 {[%clk 0:08:54]} 50. Rd2+ {[%clk 0:04:04]}  Ke5 {[%clk 0:08:49]} 51. Re2+ {[%clk 0:03:44]}  Kd6 {[%clk 0:09:13]} 52. Rd2+ {[%clk 0:03:18]}  Ke5 {[%clk 0:09:38]} 1/2-1/2

[Event "Argentine Superior Chess Championship 2023"]
[Site "https://www.chess.com"]
[Date "2023.11.01"]
[Round "5"]
[White "Tristan, Leonardo"]
[Black "Silva, Luca"]
[Result "1-0"]
[Board "5"]
[TimeControl "5400+30"]
[WhiteFideId "113816"]
[BlackFideId "147370"]
[WhiteElo "2523"]
[BlackElo "2287"]
[WhiteTeam "ARG"]
[BlackTeam "ARG"]
[WhiteClock "0:04:28"]
[BlackClock "0:08:37"]

1. d4 {[%clk 1:30:56]}  d5 {[%clk 1:30:54]} 2. c4 {[%clk 1:31:14]}  c6 {[%clk 1:31:13]} 3. cxd5 {[%clk 1:31:35]}  cxd5 {[%clk 1:31:38]} 4. Bf4 {[%clk 1:31:59]}  Nc6 {[%clk 1:31:53]} 5. e3 {[%clk 1:32:22]}  Nf6 {[%clk 1:32:13]} 6. Nc3 {[%clk 1:32:43]}  a6 {[%clk 1:32:30]} 7. Be2 {[%clk 1:32:56]}  Bf5 {[%clk 1:32:28]} 8. Nf3 {[%clk 1:32:13]}  Rc8 {[%clk 1:29:00]} 9. O-O {[%clk 1:22:21]}  e6 {[%clk 1:29:24]} 10. Qb3 {[%clk 1:13:30]}  Bb4 {[%clk 1:15:37]} 11. Rfc1 {[%clk 1:08:16]}  O-O {[%clk 0:48:45]} 12. Na4 {[%clk 0:49:08]}  b5 {[%clk 0:49:09]} 13. Nc5 {[%clk 0:49:22]}  Bxc5 {[%clk 0:46:35]} 14. dxc5 {[%clk 0:44:05]}  Na5 {[%clk 0:35:04]} 15. Qd1 {[%clk 0:30:58]}  Ne4 {[%clk 0:20:58]} 16. Nd4 {[%clk 0:25:04]}  Nc4 {[%clk 0:21:23]} 17. Nxf5 {[%clk 0:19:59]}  exf5 {[%clk 0:21:36]} 18. b3 {[%clk 0:14:18]}  g5 {[%clk 0:15:18]} 19. Bg3 {[%clk 0:14:43]}  Nxg3 {[%clk 0:05:11]} 20. hxg3 {[%clk 0:15:07]}  Ne5 {[%clk 0:05:37]} 21. a4 {[%clk 0:14:03]}  b4 {[%clk 0:03:51]} 22. Bxa6 {[%clk 0:08:40]}  Rc7 {[%clk 0:02:28]} 23. Bb5 {[%clk 0:08:02]}  Qf6 {[%clk 0:02:29]} 24. Qd4 {[%clk 0:07:58]}  Rfc8 {[%clk 0:01:56]} 25. f4 {[%clk 0:02:02]}  Ng4 {[%clk 0:02:17]} 26. Qxf6 {[%clk 0:02:21]}  Nxf6 {[%clk 0:02:46]} 27. Bd3 {[%clk 0:01:31]}  Re8 {[%clk 0:01:08]} 28. a5 {[%clk 0:01:17]}  Rxe3 {[%clk 0:01:34]} 29. Bxf5 {[%clk 0:01:40]}  Rxb3 {[%clk 0:01:44]} 30. a6 {[%clk 0:01:32]}  Ra7 {[%clk 0:02:08]} 31. c6 {[%clk 0:00:52]}  Ne8 {[%clk 0:02:35]} 32. c7 {[%clk 0:00:33]}  Nxc7 {[%clk 0:02:02]} 33. Rxc7 {[%clk 0:00:59]}  Rxc7 {[%clk 0:02:28]} 34. a7 {[%clk 0:01:25]}  Rxa7 {[%clk 0:02:50]} 35. Rxa7 {[%clk 0:01:52]}  Rxg3 {[%clk 0:03:15]} 36. fxg5 {[%clk 0:01:14]}  Rxg5 {[%clk 0:03:38]} 37. Bc2 {[%clk 0:01:06]}  Rg3 {[%clk 0:03:23]} 38. Rb7 {[%clk 0:01:28]}  Rc3 {[%clk 0:03:46]} 39. Ba4 {[%clk 0:01:49]}  Rc4 {[%clk 0:01:29]} 40. Bb3 {[%clk 0:31:51]}  Rf4 {[%clk 0:30:52]} 41. Bxd5 {[%clk 0:31:09]}  Kg7 {[%clk 0:30:35]} 42. g3 {[%clk 0:26:55]}  Rf5 {[%clk 0:29:09]} 43. Be4 {[%clk 0:25:43]}  Re5 {[%clk 0:29:20]} 44. Rxb4 {[%clk 0:26:05]}  f5 {[%clk 0:19:48]} 45. Bc2 {[%clk 0:24:14]}  Kf6 {[%clk 0:20:12]} 46. Kf2 {[%clk 0:23:19]}  Kg5 {[%clk 0:20:16]} 47. Rb8 {[%clk 0:21:54]}  Rc5 {[%clk 0:20:24]} 48. Rg8+ {[%clk 0:21:49]}  Kf6 {[%clk 0:20:48]} 49. Bd3 {[%clk 0:22:05]}  h6 {[%clk 0:20:08]} 50. Ke3 {[%clk 0:21:27]}  Ra5 {[%clk 0:20:28]} 51. Bc2 {[%clk 0:16:48]}  Rc5 {[%clk 0:20:43]} 52. Bd1 {[%clk 0:13:29]}  Rc3+ {[%clk 0:19:02]} 53. Kf2 {[%clk 0:13:32]}  Rc1 {[%clk 0:19:29]} 54. Bh5 {[%clk 0:12:49]}  Rc2+ {[%clk 0:15:10]} 55. Ke3 {[%clk 0:12:50]}  Rh2 {[%clk 0:13:44]} 56. Rf8+ {[%clk 0:08:33]}  Kg5 {[%clk 0:13:45]} 57. Bf7 {[%clk 0:07:53]}  Rh1 {[%clk 0:13:41]} 58. Rg8+ {[%clk 0:07:30]}  Kf6 {[%clk 0:13:50]} 59. Bd5 {[%clk 0:07:51]}  Re1+ {[%clk 0:13:54]} 60. Kf4 {[%clk 0:08:05]}  Rf1+ {[%clk 0:11:42]} 61. Bf3 {[%clk 0:08:21]}  Kf7 {[%clk 0:11:40]} 62. Rd8 {[%clk 0:07:07]}  Kf6 {[%clk 0:11:26]} 63. Rd6+ {[%clk 0:06:46]}  Kg7 {[%clk 0:11:51]} 64. Rd1 {[%clk 0:04:14]}  Rf2 {[%clk 0:11:48]} 65. Rb1 {[%clk 0:04:14]}  Kf6 {[%clk 0:11:52]} 66. Rb6+ {[%clk 0:04:05]}  Kg7 {[%clk 0:12:18]} 67. Ke3 {[%clk 0:03:57]}  Rf1 {[%clk 0:11:57]} 68. Be2 {[%clk 0:04:21]}  Re1 {[%clk 0:09:54]} 69. Kf3 {[%clk 0:04:45]}  Rc1 {[%clk 0:08:37]} 70. Kf4 {[%clk 0:04:28]} 1-0

[Event "Argentine Superior Chess Championship 2023"]
[Site "https://www.chess.com"]
[Date "2023.11.01"]
[Round "5"]
[White "Miranda, Rafael"]
[Black "Francisco Guecamburu, Candela Be"]
[Result "1/2-1/2"]
[Board "6"]
[TimeControl "5400+30"]
[WhiteFideId "130990"]
[BlackFideId "160911"]
[WhiteElo "2343"]
[BlackElo "2345"]
[WhiteTeam "ARG"]
[BlackTeam "ARG"]
[WhiteClock "0:31:48"]
[BlackClock "0:22:04"]

1. e4 {[%clk 1:30:54]}  e5 {[%clk 1:30:51]} 2. Nf3 {[%clk 1:31:20]}  Nc6 {[%clk 1:31:13]} 3. Bb5 {[%clk 1:31:41]}  a6 {[%clk 1:31:34]} 4. Ba4 {[%clk 1:32:07]}  b5 {[%clk 1:31:56]} 5. Bb3 {[%clk 1:32:28]}  Na5 {[%clk 1:32:19]} 6. O-O {[%clk 1:31:44]}  d6 {[%clk 1:32:26]} 7. c3 {[%clk 1:27:37]}  Nxb3 {[%clk 1:32:32]} 8. axb3 {[%clk 1:27:46]}  Nf6 {[%clk 1:32:14]} 9. Re1 {[%clk 1:27:43]}  Bb7 {[%clk 1:30:03]} 10. d3 {[%clk 1:22:29]}  g6 {[%clk 1:17:25]} 11. Nbd2 {[%clk 1:21:37]}  Bg7 {[%clk 1:17:17]} 12. Nf1 {[%clk 1:04:51]}  O-O {[%clk 1:08:59]} 13. Ng3 {[%clk 0:58:09]}  Re8 {[%clk 1:05:45]} 14. Bd2 {[%clk 0:52:18]}  c5 {[%clk 0:54:01]} 15. Qc1 {[%clk 0:48:30]}  a5 {[%clk 0:43:27]} 16. h3 {[%clk 0:46:07]}  a4 {[%clk 0:30:30]} 17. bxa4 {[%clk 0:45:03]}  bxa4 {[%clk 0:30:49]} 18. Bh6 {[%clk 0:42:57]}  Bh8 {[%clk 0:29:21]} 19. c4 {[%clk 0:39:30]}  Bc6 {[%clk 0:27:56]} 20. Nd2 {[%clk 0:34:33]}  Rb8 {[%clk 0:26:45]} 21. Nb1 {[%clk 0:33:24]}  Rb3 {[%clk 0:21:58]} 22. Nc3 {[%clk 0:33:33]}  Nd7 {[%clk 0:21:08]} 23. Rd1 {[%clk 0:33:01]}  Bg7 {[%clk 0:18:25]} 24. Bxg7 {[%clk 0:31:40]}  Kxg7 {[%clk 0:18:53]} 25. Nxa4 {[%clk 0:31:50]}  Bxa4 {[%clk 0:17:48]} 26. Rxa4 {[%clk 0:32:15]}  Qb6 {[%clk 0:18:07]} 27. Ra2 {[%clk 0:25:52]}  f6 {[%clk 0:12:11]} 28. Ne2 {[%clk 0:25:07]}  Rb8 {[%clk 0:12:16]} 29. Nc3 {[%clk 0:20:04]}  Nf8 {[%clk 0:11:17]} 30. Nd5 {[%clk 0:19:16]}  Qd8 {[%clk 0:11:00]} 31. Ra7+ {[%clk 0:17:11]}  R8b7 {[%clk 0:10:35]} 32. Rxb7+ {[%clk 0:16:38]}  Rxb7 {[%clk 0:11:01]} 33. Qc3 {[%clk 0:16:47]}  Qb8 {[%clk 0:09:18]} 34. Ra1 {[%clk 0:14:05]}  Rxb2 {[%clk 0:05:02]} 35. Qa5 {[%clk 0:13:40]}  Rb1+ {[%clk 0:05:23]} 36. Rxb1 {[%clk 0:12:03]}  Qxb1+ {[%clk 0:05:50]} 37. Kh2 {[%clk 0:12:26]}  Qb8 {[%clk 0:06:16]} 38. Qa6 {[%clk 0:10:22]}  Qd8 {[%clk 0:05:04]} 39. Nb6 {[%clk 0:10:10]}  Ne6 {[%clk 0:03:07]} 40. Nc8 {[%clk 0:37:13]}  Nc7 {[%clk 0:32:07]} 41. Qb7 {[%clk 0:37:19]}  f5 {[%clk 0:22:04]} 42. Nb6 {[%clk 0:31:48]} 1/2-1/2